Cogmind - Beta 13 @@@ ROGUE MODE // 2024.04.22 @ 19:06:10 Player: Biasface Result: Destroyed by as-24186 with Assembled Heavy Rifle Performance ------------- Evolutions (0) 0 Regions Visited (2) 400 Robots Destroyed (19) 95 Value Destroyed (292) 292 Prototype IDs (4) 80 Alien Tech Used (0) 0 Bonus (0) 0 TOTAL SCORE: 867 Bonus ------- None Cogmind --------- Core Integrity 0/250 Matter 174/300 Energy 123/125 System Corruption 2% Temperature Cool (1) Movement Treading (240) Ox1 Location -10/Mines Parts ------- > --- POWER (1) -------- Light Ion Engine > --- PROPULSION (2) --- Improved Treads > --- UTILITY (2) ------ Large Storage Unit Seismic Detector > --- WEAPON (2) ------- Mining Claw > --- INVENTORY (15) --- Improved Treads Improved Treads Aluminum Leg Heat Sink Tractor Beam Peak State ------------ > --- POWER ------------ Ion Engine > --- PROPULSION ------- Improved Treads Improved Treads > --- UTILITY ---------- Small Storage Unit Seismic Detector > --- WEAPON ----------- Assault Rifle Rocket Launcher > --- INVENTORY -------- Light Ion Engine Improved Treads Improved Treads Aluminum Leg Aluminum Leg Tractor Beam EM Pulse Gun Light Assault Rifle [Rating: 11] Favorites ----------- Power Ion Engine Engine Ion Engine Propulsion Improved Treads Treads Improved Treads Utility Seismic Detector Device Seismic Detector Storage Small Storage Unit Weapon Light Assault Rifle Energy Gun EM Pulse Gun Ballistic Gun Light Assault Rifle Launcher Rocket Launcher Slashing Weapon Mining Claw Build | -11 -10 -10 ------- Run | Yrd Mat Min Slots Evolved . | . . . Power . | . . . Propulsion . | . . . Utility . | . . . Weapon . | . . . Parts Attached 19 | 8 5 6 Power 2 | 1 . 1 Engine 2 | 1 . 1 Core . | . . . Reactor . | . . . Propulsion 4 | 2 2 . Treads 4 | 2 2 . Leg . | . . . Wheel . | . . . Hover . | . . . Flight . | . . . Utility 3 | 2 1 . Device 1 | 1 . . Storage 2 | 1 1 . Processor . | . . . Hackware . | . . . Protection . | . . . Artifact . | . . . Weapon 10 | 3 2 5 Energy Gun 2 | 1 . 1 Energy Cannon . | . . . Ballistic Gun 4 | 2 1 1 Ballistic Cannon . | . . . Launcher 3 | . 1 2 Special Weapon . | . . . Impact Weapon . | . . . Slashing Weapon 1 | . . 1 Piercing Weapon . | . . . Special Melee Weapon . | . . . Unidentified Prototypes . | . . . Parts Lost 6 | . . 6 Power 1 | . . 1 Propulsion 1 | . . 1 Utility . | . . . Weapon 4 | . . 4 Highest Loss Streak 6 | . . 6 To Critical Strikes . | . . . Average Slot Usage (%) 99 | . 100 98 Engine 14 | . 14 14 Treads 27 | . 28 27 Device 14 | . 14 14 Storage 14 | . 14 14 Ballistic Gun 27 | . 28 24 Naked Turns . | . . . Heaviest Build 29 | 14 29 29 Greatest Support 46 | 40 46 46 Greatest Overweight (x) 4 | 4 . 1 Average Overweight (x) . | . . . Largest Inventory Capacity 15 | 8 15 15 Average Capacity 11 | 7 10 15 Most Carried 9 | 5 9 9 Average Carried 7 | 3 8 8 Final Capacity 15 | 8 15 15 Final Carried 9 | 5 9 5 Class Distribution -------------------- 100% | Mutant Dominant Class ---------------- Mutant | -10/Materials Mutant | -10/Mines Resources | -11 -10 -10 ----------- Run | Yrd Mat Min Matter Collected 582 | 310 145 127 Remotely . | . . . Salvage Created 529 | 103 240 186 Parts 40 | 7 27 6 Haulers Intercepted 1 | . 1 . Recyclers Shooed 1 | 1 . . Parts Field Recycled . | . . . Retrieved Matter . | . . . Parts Self-Destructed . | . . . Prevented . | . . . Kills | -11 -10 -10 ------- Run | Yrd Mat Min Combat Hostiles Destroyed 29 | . 11 18 Guns 13 | . 9 4 AOE 16 | . 2 14 Classes Destroyed 8 | 2 4 2 Builder 1 | . . 1 Tunneler 2 | 2 . . Hauler 1 | . 1 . Recycler 1 | 1 . . Operator 1 | . 1 . Swarmer 9 | . 9 . Grunt 4 | . 2 2 Assembled 16 | . . 16 Best Kill Streak 15 | 2 7 15 Combat Bots Only 15 | . 7 15 Max Kills in Single Turn 4 | 1 2 4 Gunslinging . | . . . Exploded 4 | . 2 4 Melee . | . . . Uniques/NPCs Destroyed . | . . . Combat | -11 -10 -10 -------- Run | Yrd Mat Min Hostile Shots Fired 95 | . 30 65 Missed 26 | . 8 18 Damage Taken 1120 | . 203 917 Core 260 | . 23 237 Absorbed by Shields . | . . . Core Remaining (%) 100 | 100 . . Volleys Fired 75 | 13 30 32 Largest 2 | 2 2 2 Hottest 60 | 40 40 60 Shots Fired 134 | 26 59 49 Gun 122 | 26 58 38 Cannon . | . . . Launcher 12 | . 1 11 Special . | . . . Kinetic 114 | 26 58 30 Thermal . | . . . Explosive 12 | . 1 11 Electromagnetic 8 | . . 8 Robot Hit Streak 14 | 8 4 14 Robot Miss Streak 4 | 2 3 4 Penetration Max . | . . . Secondary Targets 1 | . 1 . Max Gunslinging Chain 1 | . 1 . Shots Hit Robots 75 | 16 32 27 Core Hits 61 | 6 16 39 Critical Kills . | . . . Critical Parts Destroyed . | . . . Critical Strikes 1 | . . 1 Corrupt 1 | . . 1 Melee Attacks . | . . . Impact . | . . . Slashing . | . . . Piercing . | . . . Sneak Attacks . | . . . Combat Hostiles . | . . . Follow-up Attacks . | . . . Damage Inflicted 1981 | 154 539 1288 Guns 765 | 154 343 268 Cannons . | . . . Explosions 1199 | . 190 1009 Melee . | . . . Ramming 17 | . 6 11 Kinetic 709 | 154 343 212 Thermal . | . . . Explosive 1199 | . 190 1009 Electromagnetic 56 | . . 56 Impact . | . . . Slashing . | . . . Piercing . | . . . Highest Corruption 2 | . . 2 Average Corruption 2 | . . 2 Corruption Purged . | . . . Corruption Blocked . | . . . Overload Shots . | . . . Overflow Damage 40 | . 30 10 Projectiles . | . . . Explosions 40 | . 30 10 Melee . | . . . Knockbacks . | . . . Impact . | . . . Kinetic . | . . . Secondary . | . . . Self-Inflicted Damage 98 | . . 98 Shots 4 | . . 4 Rammed 3 | . 2 1 Targets Rammed 4 | . 3 1 Kicked . | . . . Crushed 1 | . 1 . Highest Temperature 80 | . 6 80 Average Temperature 29 | . 6 30 Received Heat Transfer 235 | . 12 223 Siege Activations . | . . . Robots Corrupted . | . . . Combat Hostiles . | . . . Parts Fried . | . . . Impact Corruptions . | . . . Robots Melted . | . . . Combat Hostiles . | . . . Parts Melted . | . . . Heat Transferred . | . . . Parts Sabotaged . | . . . Parts Stolen . | . . . Parts Stripped . | . . . Power Chain Reactions . | . . . Alert | -11 -10 -10 ------- Run | Yrd Mat Min Peak Influence 288 | 15 288 112 Initial 17 | . 9 17 Average 87 | 5 119 48 Maximum Alert Level 1 | . 1 . Low Security (%) 92 | 100 87 100 Level 1 7 | . 12 . Level 2 . | . . . Level 3 . | . . . Level 4 . | . . . Level 5 . | . . . High Security . | . . . Max Security . | . . . Squads Dispatched 2 | . 2 . Investigation 1 | . 1 . Extermination . | . . . Reinforcement 1 | . 1 . Assault . | . . . Garrison . | . . . Intercept . | . . . Searches Triggered . | . . . Construction Impeded . | . . . Haulers Reinforced . | . . . Active Scanning Responses . | . . . Cargo Convoy Interrupts . | . . . Stealth | -11 -10 -10 --------- Run | Yrd Mat Min Distress Signals 3 | . 3 . Communications Jammed . | . . . Distress Signals . | . . . Times Spotted 46 | . 25 21 Peak Tracking Total 11 | . 5 11 Tactical Retreats . | . . . Traps | -11 -10 -10 ------- Run | Yrd Mat Min Traps Triggered 1 | . 1 . Indirectly . | . . . Trap Hack Attempts . | . . . Triggered . | . . . Disarmed . | . . . Reprogrammed . | . . . Reused . | . . . Traps Extracted . | . . . Installed . | . . . Triggered . | . . . Machines | -11 -10 -10 ---------- Run | Yrd Mat Min Machines Disabled 1 | . 1 . Max in Single Turn 1 | . 1 . Machines Repaired . | . . . Machines Dismantled . | . . . Machines Sabotaged . | . . . Overloaded Fab Kills . | . . . Hacking | -11 -10 -10 --------- Run | Yrd Mat Min Machines Accessed 8 | . 8 . Terminals 6 | . 6 . Fabricators . | . . . Repair Stations 1 | . 1 . Recycling Units 1 | . 1 . Scanalyzers . | . . . Garrison Access . | . . . Total Hacks 19 | . 19 . Successful 12 | . 12 . Failed 7 | . 7 . Catastrophic . | . . . Database Lockouts . | . . . Manual 8 | . 8 . Terminals 16 | . 16 . Fabricators . | . . . Repair Stations 2 | . 2 . Recycling Units 1 | . 1 . Scanalyzers . | . . . Garrison Access . | . . . Terminal Hacks 10 | . 10 . Robot Analysis 3 | . 3 . Prototype ID Bank 2 | . 2 . Locate Traps 4 | . 4 . Dispatch Records 1 | . 1 . Fabricator Hacks . | . . . Repair Station Hacks 1 | . 1 . Scan Component 1 | . 1 . Recycling Unit Hacks 1 | . 1 . Retrieve Components 1 | . 1 . Scanalyzer . | . . . Garrison Access Hacks . | . . . Unauthorized Hacks . | . . . Terminals . | . . . Fabricators . | . . . Repair Stations . | . . . Recycling Units . | . . . Scanalyzers . | . . . Garrison Access . | . . . Data Cores Recovered . | . . . Used . | . . . Hacking Detections 5 | . 5 . Full Trace Events 1 | . 1 . Feedback Events . | . . . Feedback Blocked . | . . . Robot Schematics Acquired . | . . . Robots Built . | . . . Authchips . | . . . Time . | . . . Total Robot Build Rating . | . . . Part Schematics Acquired . | . . . Parts Built . | . . . Authchips . | . . . Time . | . . . Total Part Build Rating . | . . . Parts Repaired . | . . . Time . | . . . Parts Recycled . | . . . Recycled Matter . | . . . Retrieved Matter . | . . . Retrieved Components 10 | . 10 . Parts Scanalyzed . | . . . Part Schematics Acquired . | . . . Parts Damaged . | . . . Bothacking | -11 -10 -10 ------------ Run | Yrd Mat Min Used RIF Installer . | . . . Robots Hacked . | . . . Non-combat . | . . . Combat . | . . . Robot Hacks Applied . | . . . Relay Couplers Released . | . . . Fabnet Peak Effective % . | . . . Robots Rewired . | . . . Allies Hacked . | . . . Hacks Repelled . | . . . Allies | -11 -10 -10 -------- Run | Yrd Mat Min Total Allies . | . . . Largest Group . | . . . Highest-Rated Group . | . . . Highest-Rated Ally . | . . . Total Orders . | . . . Ally Attacks . | . . . Total Damage . | . . . Kills . | . . . Allies Corrupted . | . . . Allies Melted . | . . . Intel | -11 -10 -10 ------- Run | Yrd Mat Min Robot Analysis Total 3 | . 3 . Derelict Logs Recovered . | . . . Drone Launches . | . . . Drone Recoveries . | . . . Exploration | -11 -10 -10 ------------- Run | Yrd Mat Min Turns Passed 1592 | 169 984 439 Spaces Moved 835 | 71 548 216 Core 14 | 14 . . Treads 821 | 57 548 216 Legs . | . . . Wheels . | . . . Hover . | . . . Flight . | . . . Fastest Speed 50 | 50 160 160 Average Speed 160 | 162 160 161 Slowest Speed 250 | 250 160 240 Overloaded Moves . | . . . Propulsion Burnouts . | . . . Robots Hopped . | . . . Cave-ins Triggered . | . . . Exploration Rate (%) 51 | 5 93 57 Regions Visited 2 Branch Regions 1 Pre-discovered Areas . | . . . Known Exits Taken . | . . . Unknown Exits Taken 2 | 1 1 . Scrap Searched . | . . . Spaces Dug 2 | . . 2 Terrain Destroyed 84 | . 3 81 Melee . | . . . Projectile . | . . . AOE 84 | . 3 81 Terrain Rammed . | . . . Walls Destroyed . | . . . Machines Disabled . | . . . Actions | -11 -10 -10 --------- Run | Yrd Mat Min Total 957 | 97 600 260 Wait 11 | . 6 5 Move 833 | 70 547 216 Hop . | . . . Pick Up 11 | 6 5 . Fast Attach 6 | 6 . . Attach 5 | 1 . 4 Detach . | . . . Swap 8 | 1 5 2 Drop 4 | . 4 . Fire 75 | 13 30 32 Melee . | . . . Ram . | . . . Kick . | . . . Crush 4 | . 3 1 Escape Stasis . | . . . Rewire . | . . . Trap . | . . . Miscellaneous . | . . . Route ------- -11/Scrapyard -10/Materials (discovered 5 exits: [*Mat x3] / [*Min x2]) -10/Mines History --------- Turn | Location | Event 31 | -11/Scrapyard | Discovered new exit (range 16) 170 | -11/Scrapyard | Entered Materials 304 | -10/Materials | Build established: Mutant 348 | -10/Materials | Destroyed 7 combat bots 411 | -10/Materials | Discovered new exit (range 7) 572 | -10/Materials | Discovered new exit (range 16) 785 | -10/Materials | Discovered new exit (range 16) 947 | -10/Materials | Discovered new exit (range 16) 1128 | -10/Materials | Discovered new exit (range 12) 1154 | -10/Materials | Entered Mines 1207 | -10/Mines | Met a Derelict bent on vengeance 1491 | -10/Mines | Assembled infested the area 1543 | -10/Mines | Core integrity fell below 50% 1569 | -10/Mines | Destroyed 15 combat bots 1585 | -10/Mines | Core integrity fell below 20% 1593 | -10/Mines | Destroyed by as-24186 with Assembled Heavy Rifle Last Messages --------------- 01569_ as-24186 misfires. 01570_ The unstable cave ceiling collapses. 01570_ U-05 Engineer lays Concrete. 01573_ The unstable cave ceiling collapses. 01573_ U-05 Engineer destroyed. 01574_ Lgt. Assault Rifle destroyed. 01575_ U-05 Engineer lays Concrete. 01575_ R-06 Scavenger collects Corrupted Wheel. 01576_ U-05 Engineer lays Concrete. 01577_ Imp. Treads destroyed. 01579_ R-06 Scavenger collects Terrain Scanner. 01580_ as-58809 destroyed. 01581_ U-05 Engineer lays Concrete. 01581_ EM Pulse Gun destroyed. 01582_ U-05 Engineer lays Concrete. 01585_ U-05 Engineer builds a Wall. 01589_ The unstable cave ceiling collapses. 01589_ U-05 Engineer lays Concrete. 01590_ The unstable cave ceiling collapses. 01591_ U-05 Engineer lays Concrete. Map ----- +----------------------------------------------------+ | ?????????????????????????????# #?????????# | | ?????????????????????????????# #?# ####### # | | ?????????????????????????????# #?# ### ## | | ?????????????????????????????# #?# #? | | ?????????????????????????????# #?######## ## | | ?????????????????????????????#%#????????## # | | ???????????????????????#####?# #?????????## # | | ???????????????### ???## # ## #??????????##### # | | ???????????????# ### ## #??????????????# # | | ?????????????? ##?????????????# # | | ?????????????? #????????###### # | | ?????????????? *% #????????# =% # | | ??????????????# ## ##??????## # | | ???????????????# ### ???## #???### # ###### | | ?????????????????????##?????# #??# #????? | | ????????????????????????????# ### = #????# | | ???????????????????????????## # # # ###### | | ??????????????????????????## % ### ## | | ??????????????????????????# ! u # ## | | ??????????????????????????# ## | | ??????????????????????????# =### ## | | ?????????????????????????## % = aa %#?# ##? | | ?????????????# ??????????# ! # ### #?? | | ??????????????# ####### a # # #?? | | ???????????????# ### ### ### | | ???????????????# $ @ ## ###?# #?# | | ??????????????# ######## ## ###???# #?##### | | ?????????????? ???????????##########????? #?????# | | ?????????????????????????????????????????##?????## | | ???????????????????????????????????????????????## | | ???????????????????????????????????????????????# | | ??????????????????????????????????????????????## | | ??????????????????????????????????????????????# | | ?????????????????????????????????????????????## | | ?????????????????????????????????????????????# | | ????????????????????????????????????????????# | | ???????????????????????????????????????????# # | | ???????????????????????????????????????????# ## | | ???????????????????????????????????????????## #?? | | ????????????????????????????????????????????# #??? | | ????????????????????????????????????????????##???? | | ?????????????????????????????????????????????????? | | ?????????????????????????????????????????????????? | | ?????????????????????????????????????????????????? | | ?????????????????????????????????????????????????? | | ?????????????????????????????????????????????????? | | ?????????????????????????????????????????????????? | | ?????????????????????????????????????????????????? | | ?????????????????????????????????????????????????? | | | +----------------------------------------------------+ Best States ------------- Heat Dissipation 25 Energy Generation 10 Energy Capacity 250 Matter Stores 300 Matter Capacity 300 Sight Range 16 Terrain Scan Density 10 Evasion (%) 40 Recoil Reduction 2 Item Schematics ----------------- None Robot Schematics ------------------ None Fabricated ------------ Nothing Alien Tech Used ----------------- None Achievements -------------- Exterminator root@ Challenges ------------ None Game ------ Seed AdvancedSkeletonMatrix Manual? 0 Play Time 00:11:50 Cumulative 10.6 hours Start 2024.04.22 @ 18:57:03 End 2024.04.22 @ 19:06:10 Sessions 1 Manual Loads 0 Difficulty Rogue Special Mode None Game No. 16 Rogue 16 Adventurer 0 Explorer 0 Win Type - Total 1 Types 1/0/0/0/0/0/0/0/0 Lore% 20 Gallery% 16 Achievement% 21 Wizard Run 0 Options --------- Layout 1 ASCII 0 Keyboard 0 Movement Arrows Keybinds 0 Fullscreen 1 Font 24/Smallcaps Map View 50x35 Zoom Use 0% Tactical HUD 1 Map Filters NONE Filters NONE Steam 1 RUN: 37a52fb0-1a43-488a-a0bc-57e2676e1e60